Cogmind - Beta 16 @@@ ROGUE MODE // 2026.01.18 @ 22:03:32 Player: Lazz Result: Destroyed by exploding Power Conduit Performance ------------- Evolutions (6) 3000 Regions Visited (13) 2600 Robots Destroyed (99) 495 Value Destroyed (3935) 3935 Prototype IDs (7) 140 Alien Tech Used (0) 0 Bonus (2324) 2324 TOTAL SCORE: 12494 Bonus ------- High Alert Combat Kills 132 Follower Combat Kills 1231 Entered Garrisons 200 Used RIF Installer 500 Built Enhanced Grunts 300 Friendly Fire -39 Cogmind --------- Core Integrity 0/1150 Matter 25/300 Energy 87/100 System Corruption 0% Temperature Cool (36) Movement Core (50) Location -4/Factory Parts ------- > --- POWER (2) -------- (None) > --- PROPULSION (6) --- (None) > --- UTILITY (7) ------ (None) > --- WEAPON (4) ------- (None) > --- INVENTORY (5) ---- Medium Matter Pod (0) Hacking Suite Gauss Rifle Assault Cannon Peak State ------------ > --- POWER ------------ Neutrino Core Quantum Reactor > --- PROPULSION ------- Centrium Heavy Treads Flexi-carbon Leg Enhanced Flexi-carbon Leg Enhanced Flexi-carbon Leg Enhanced Flexi-carbon Leg > --- UTILITY ---------- High-capacity Storage Unit Advanced Signal Interpreter Advanced Targeting Computer Centrium Medium Armor Plating Centrium Medium Armor Plating Improved System Shield > --- WEAPON ----------- Flak Gun Mini Assault Cannon Mass Driver > --- INVENTORY -------- Light Angular Momentum Engine Micro Fission Core Advanced Heat Sink Medium Matter Pod Improved Sensor Array Improved Utility Shielding Layered Medium Armor Plating Centrium Medium Armor Plating Hacking Suite Gauss Rifle Gauss Rifle Flak Gun Flak Gun Assault Cannon Flak Cannon Improved Grenade Launcher Improved Grenade Launcher Great Maul Axe [Rating: 113] Favorites ----------- Power Light Angular Momentum Engine Engine Light Angular Momentum Engine Power Core Neutrino Core Reactor Quantum Reactor Propulsion Light Treads Treads Light Treads Leg Enhanced Flexi-carbon Leg Wheel Compact Wheel Utility Improved Light Armor Plating Device Improved Sensor Array Storage High-capacity Storage Unit Processor Advanced Targeting Computer Hackware Improved Hacking Suite Protection Improved Light Armor Plating Weapon Advanced Assault Cannon Energy Gun Medium Laser Ballistic Gun Flak Gun Ballistic Cannon Advanced Assault Cannon Launcher Grenade Launcher Slashing Weapon Axe Build | -11 -10 -9 -8 -8 -8 -7 -6 -6 -6 -6 -6 -5 -4 ------- Run | Yrd Mat Mat Mat Gar Mat Fac Fac Ext Cet Arc Hub Fac Fac Slots Evolved 12 | . . 2 2 . . 2 2 . . . . 2 2 Power 1 | . . . . . . . 1 . . . . . . Propulsion 4 | . . 1 1 . . . 1 . . . . 1 . Utility 5 | . . 1 1 . . 1 . . . . . 1 1 Weapon 2 | . . . . . . 1 . . . . . . 1 Parts Attached 112 | 7 5 8 9 16 4 5 2 24 7 4 1 12 8 Power 17 | 1 . 1 1 2 1 . 2 3 1 1 1 2 1 Engine 13 | 1 . 1 1 2 1 . 2 3 1 . . . 1 Core 3 | . . . . . . . . . . 1 . 2 . Reactor 1 | . . . . . . . . . . . 1 . . Propulsion 32 | 2 2 3 3 6 1 . . 8 1 3 . 2 1 Treads 12 | . 2 . 2 5 1 . . . 1 . . . 1 Leg 13 | . . . . . . . . 8 . 3 . 2 . Wheel 7 | 2 . 3 1 1 . . . . . . . . . Hover . | . . . . . . . . . . . . . . Flight . | . . . . . . . . . . . . . . Utility 33 | 2 2 2 3 1 2 2 . 7 4 . . 6 2 Device 6 | 1 . . . . . . . 1 . . . 2 2 Storage 2 | 1 1 . . . . . . . . . . . . Processor 4 | . . 1 . . 1 . . 1 . . . 1 . Hackware 2 | . . . . . . . . . 1 . . 1 . Protection 19 | . 1 1 3 1 1 2 . 5 3 . . 2 . Artifact . | . . . . . . . . . . . . . . Weapon 30 | 2 1 2 2 7 . 3 . 6 1 . . 2 4 Energy Gun 2 | 1 . 1 . . . . . . . . . . . Energy Cannon . | . . . . . . . . . . . . . . Ballistic Gun 12 | 1 1 1 . 1 . 2 . 1 1 . . 1 3 Ballistic Cannon 10 | . . . 2 2 . 1 . 3 . . . 1 1 Launcher 5 | . . . . 4 . . . 1 . . . . . Special Weapon . | . . . . . . . . . . . . . . Impact Weapon . | . . . . . . . . . . . . . . Slashing Weapon 1 | . . . . . . . . 1 . . . . . Piercing Weapon . | . . . . . . . . . . . . . . Special Melee Weapon . | . . . . . . . . . . . . . . Unidentified Prototypes 5 | . . . . . . 1 . 1 2 1 . . . Corrupted Parts 4 | . . . . . . . . 2 1 . 1 . . System Corruption 30 | . . . . . . . . 13 5 . 12 . . Parts Lost 65 | . 2 1 1 11 1 . . 23 2 . . 9 15 Power 11 | . 1 . . 2 . . . 3 1 . . 2 2 Propulsion 24 | . . . 1 5 1 . . 10 . . . 3 4 Utility 12 | . . 1 . 1 . . . 5 . . . 3 2 Weapon 18 | . 1 . . 3 . . . 5 1 . . 1 7 Highest Loss Streak 11 | . 1 1 1 7 1 . . 11 2 . . 9 10 To Critical Strikes 1 | . 1 . . . . . . . . . . . . Average Backups 17 | 1 11 11 16 19 20 19 19 17 18 20 20 19 15 Power 1 | . . . . 1 1 1 . . 1 2 2 1 1 Propulsion 1 | . 4 6 5 3 3 1 . . . . . . . Utility 5 | . 2 2 4 6 7 5 6 5 7 7 7 7 4 Weapon 8 | . 2 3 5 7 6 11 12 11 10 11 11 10 9 Tool/Special . | . . . . . . . . . . . . . . Unused Backups 35 | . . . 9 4 3 4 . 1 . 1 . 3 10 Power 5 | . . . . 1 1 1 . . . . . . 2 Propulsion 5 | . . . 1 1 1 2 . . . . . . . Utility 11 | . . . 3 . 1 . . . . 1 . 2 4 Weapon 14 | . . . 5 2 . 1 . 1 . . . 1 4 Tool/Special . | . . . . . . . . . . . . . . Average Slot Usage (%) 88 | . 86 97 98 97 97 99 99 76 86 92 93 87 68 Engine 7 | . 2 10 9 8 9 7 12 10 9 9 6 . 3 Core 1 | . . . . . . . . . . 2 6 4 4 Treads 15 | . 13 1 3 30 33 30 33 8 4 6 6 4 . Leg 6 | . . . . . . . . 6 20 19 20 17 12 Wheel 3 | . 14 31 32 4 . . . . . . . . . Device 1 | . 2 . . . . . . 2 1 . . 4 7 Storage 7 | . 14 11 9 9 9 7 6 6 6 6 6 5 4 Processor 7 | . . 11 9 9 9 7 6 5 6 6 6 7 9 Hackware 1 | . . . . . . . . . 2 6 6 7 4 Protection 14 | . 11 9 17 17 18 23 20 16 14 13 13 6 6 Energy Gun 1 | . 14 11 3 . . . . . . . . . . Ballistic Gun 4 | . 13 11 3 3 . 3 . 2 5 6 6 4 4 Ballistic Cannon 12 | . . . 10 13 18 19 20 12 12 13 13 10 8 Peak Build Rating 113 | 9 9 11 28 36 38 45 50 56 88 97 100 113 87 Average Rating 50 | 6 7 10 21 33 36 44 49 42 76 93 97 101 73 On Entrance 45 | . 9 7 11 28 36 37 45 50 54 88 97 100 71 Avg Prop Armor Cover (%) 11 | . . . 16 18 . . . 4 9 9 9 10 . Naked Turns 12 | . . . . . . . . . . . . . 12 Heaviest Build 106 | 13 47 51 63 67 67 74 83 89 87 91 102 106 84 Greatest Support 104 | 32 40 30 46 82 82 80 100 100 80 84 84 104 74 Greatest Overweight (x) 26 | . 1 1 6 6 1 . . 26 1 1 1 1 2 Average Overweight (x) 1 | . . 1 1 2 . . . 2 . 1 1 . . Largest Inventory Capacity 20 | 8 20 20 20 20 20 20 20 20 20 20 20 20 20 Average Capacity 19 | 7 17 20 20 20 20 20 20 20 20 20 20 20 19 Most Carried 20 | 5 14 13 20 20 20 20 20 20 20 20 20 20 17 Average Carried 17 | 1 11 11 16 19 19 19 19 17 18 20 20 19 15 Final Capacity 20 | 8 20 20 20 20 20 20 20 20 20 20 20 20 5 Final Carried 20 | 5 14 13 20 20 20 20 20 19 20 20 20 16 4 Class Distribution -------------------- 28% | Mutant 21% | Scavenger-Tank 17% | Tank 13% | Scavenger-Mutant 11% | Commander-Mutant 3% | Scavenger-Skirmisher 3% | Commander-Tank Dominant Class ---------------- Mutant | -10/Materials Scavenger-Mutant | -9/Materials Scavenger-Mutant | -8/Materials Mutant | -8/Garrison Mutant | -8/Materials Tank | -7/Factory Tank | -6/Factory Tank | -6/Extension Scavenger-Tank | -6/Cetus Scavenger-Tank | -6/Archives Scavenger-Tank | -6/Hub_04(d) Scavenger-Tank | -5/Factory Scavenger-Mutant | -4/Factory Resources | -11 -10 -9 -8 -8 -8 -7 -6 -6 -6 -6 -6 -5 -4 ----------- Run | Yrd Mat Mat Mat Gar Mat Fac Fac Ext Cet Arc Hub Fac Fac Matter Collected 4558 | 382 175 118 87 942 323 349 . 787 642 360 . 207 186 Remotely . | . . . . . . . . . . . . . . Salvage Created 2573 | 162 269 118 171 671 273 183 . 191 119 111 . 240 65 Parts 150 | 11 30 8 7 34 11 8 . 17 4 4 . 15 1 Haulers Intercepted 4 | . 1 . 2 . 1 . . . . . . . . Recyclers Shooed 1 | . 1 . . . . . . . . . . . . Parts Field Recycled . | . . . . . . . . . . . . . . Retrieved Matter . | . . . . . . . . . . . . . . Parts Self-Destructed . | . . . . . . . . . . . . . . Prevented . | . . . . . . . . . . . . . . Parts Restored . | . . . . . . . . . . . . . . Kills | -11 -10 -9 -8 -8 -8 -7 -6 -6 -6 -6 -6 -5 -4 ------- Run | Yrd Mat Mat Mat Gar Mat Fac Fac Ext Cet Arc Hub Fac Fac Combat Hostiles Destroyed 79 | . 10 2 2 24 9 4 . 7 3 4 . 10 4 Guns 19 | . 10 2 . 2 . 1 . . . 1 . 3 . Cannons 42 | . . . 2 14 8 3 . 7 3 3 . 1 1 AOE 18 | . . . . 8 1 . . . . . . 6 3 Classes Destroyed 17 | 3 4 1 . 4 2 . . 2 . . . . 1 Worker 3 | 2 . . . . . 1 . . . . . . . Builder 3 | . . . . . . . . 3 . . . . . Tunneler 3 | 2 . . . . . . . 1 . . . . . Hauler 4 | . 1 . 2 . 1 . . . . . . . . Recycler 1 | 1 . . . . . . . . . . . . . Operator 2 | . . . . . 1 1 . . . . . . . Watcher 4 | . 1 . 1 . 1 1 . . . . . . . Swarmer 21 | . 8 . . 5 . . . . . . . 5 3 Grunt 16 | . 2 . . 8 3 3 . . . . . . . Brawler 1 | . . . . 1 . . . . . . . . . Duelist 2 | . . . . . 2 . . . . . . . . Sentry 21 | . . 2 2 5 3 1 . 4 . 4 . . . Specialist 4 | . . . . 1 . . . . . . . 3 . Hunter 5 | . . . . 3 1 . . . 1 . . . . Programmer 3 | . . . . . . . . 1 . . . 2 . Heavy 1 | . . . . . . . . . . . . . 1 Behemoth 3 | . . . . 1 . . . 2 . . . . . Cetus Guard 2 | . . . . . . . . . 2 . . . . Best Kill Streak 9 | 3 4 1 3 5 3 3 . 3 1 2 . 9 3 Combat Bots Only 9 | . 4 1 1 5 2 3 . 2 1 2 . 9 3 Max Kills in Single Turn 5 | 1 1 1 1 4 2 1 . 1 1 1 . 5 3 Gunslinging . | . . . . . . . . . . . . . . Exploded 5 | . . . . 4 1 . . . . . . 5 3 Melee . | . . . . . . . . . . . . . . Uniques/NPCs Destroyed . | . . . . . . . . . . . . . . Combat | -11 -10 -9 -8 -8 -8 -7 -6 -6 -6 -6 -6 -5 -4 -------- Run | Yrd Mat Mat Mat Gar Mat Fac Fac Ext Cet Arc Hub Fac Fac Hostile Shots Fired 1268 | . 57 28 4 166 35 20 . 492 32 18 . 234 182 Missed 401 | . 18 8 2 48 10 9 . 180 6 4 . 62 54 Hits 867 | . 39 20 2 118 25 11 . 312 26 14 . 172 128 Projectile 867 | . 39 20 2 118 25 11 . 312 26 14 . 172 128 AOE 5 | . . . . 5 . . . . . . . . . Critical Strikes 28 | . 1 . . 3 1 2 . 2 5 . . 5 9 Actively Blocked 1 | . . . . . . . . . . . . . 1 Damage Taken 14572 | . 331 266 28 2343 406 130 . 3801 587 324 . 3371 2985 Core 2271 | . 31 41 . 246 51 18 . 378 55 . . 268 1183 Absorbed by Shields 115 | . . . . . . . . . 115 . . . . Redirected to Shielding 191 | . . . . . . 32 . 70 . . . . 89 Ignored by Resistances 324 | . . . . . . . . . . . . . 324 Regen/Repaired (Parts) 74 | . . . . . . . . . . . . 74 . Core Remaining (%) 77 | 100 87 89 . . 46 97 . . . . 49 73 . Volleys Fired 262 | 19 40 9 9 46 34 12 . 38 12 15 . 18 10 Largest 4 | 2 2 2 2 2 2 3 . 3 3 3 . 3 4 Hottest 133 | 70 70 65 80 80 80 120 . 120 105 105 . 117 133 Shots Fired 612 | 38 79 18 18 90 68 36 . 111 32 45 1 51 25 Gun 242 | 38 79 18 . 19 . 5 . 23 12 15 1 18 14 Cannon 345 | . . . 18 58 68 31 . 82 20 30 . 29 9 Launcher 25 | . . . . 13 . . . 6 . . . 4 2 Special . | . . . . . . . . . . . . . . Kinetic 519 | 19 39 9 18 77 68 36 . 105 32 45 1 47 23 Thermal 59 | 19 40 . . . . . . . . . . . . Explosive 25 | . . . . 13 . . . 6 . . . 4 2 Electromagnetic 9 | . . 9 . . . . . . . . . . . Robot Hit Streak 14 | 6 12 14 5 10 14 13 . 12 9 9 . 12 10 Robot Miss Streak 8 | 2 3 1 1 3 2 3 . 6 8 8 . 3 3 Penetration Max 1 | . . . . . . . . 1 . . . . . Secondary Targets . | . . . . . . . . . . . . . . Shots Hit Robots 439 | 26 55 15 12 58 47 23 . 84 27 37 . 33 22 Core Hits 269 | 6 16 4 5 38 17 20 . 58 25 26 . 28 26 Critical Kills . | . . . . . . . . . . . . . . Critical Parts Destroyed 4 | . . . . . . . . 4 . . . . . Critical Strikes 29 | 3 2 . 2 4 5 . . 10 1 . . 2 . Burn 5 | 3 2 . . . . . . . . . . . . Destroy 4 | . . . . . . . . 4 . . . . . Blast 20 | . . . 2 4 5 . . 6 1 . . 2 . Melee Attacks 22 | . . . . . . . . 22 . . . . . Impact . | . . . . . . . . . . . . . . Slashing 22 | . . . . . . . . 22 . . . . . Piercing . | . . . . . . . . . . . . . . Sneak Attacks 1 | . . . . . . . . 1 . . . . . Combat Hostiles . | . . . . . . . . . . . . . . Follow-up Attacks . | . . . . . . . . . . . . . . Damage Inflicted 12095 | 322 694 222 326 2127 1378 636 . 2276 618 834 . 1705 957 Guns 3107 | 322 694 185 . 302 . 120 . 433 191 242 . 315 303 Cannons 6541 | . . . 326 868 1378 516 . 1606 427 592 . 626 202 Explosions 2377 | . . 37 . 957 . . . 167 . . . 764 452 Melee 70 | . . . . . . . . 70 . . . . . Ramming . | . . . . . . . . . . . . . . Kinetic 9055 | 156 368 84 326 1170 1378 636 . 2039 618 834 . 941 505 Thermal 916 | 166 326 37 . . . . . . . . . 387 . Explosive 1863 | . . . . 957 . . . 167 . . . 287 452 Electromagnetic 191 | . . 101 . . . . . . . . . 90 . Impact . | . . . . . . . . . . . . . . Slashing 70 | . . . . . . . . 70 . . . . . Piercing . | . . . . . . . . . . . . . . Highest Corruption 41 | . . . . 1 1 . . 24 29 29 41 2 . Average Corruption 14 | . . . . 1 1 . . 13 27 29 29 1 . Corruption Purged . | . . . . . . . . . . . . . . Corruption Blocked . | . . . . . . . . . . . . . . Effects 93 | . . . . 2 2 . . 33 29 20 3 4 . Message Errors 18 | . . . . . . . . 6 6 4 1 1 . Matter Fused 19 | . . . . 2 . . . 7 5 5 . . . Heat Flow Errors 12 | . . . . . 1 . . 6 2 2 . 1 . Energy Discharges 14 | . . . . . . . . 5 7 2 . . . Parts Rejected 1 | . . . . . 1 . . . . . . . . Parts Fused 2 | . . . . . . . . 1 . 1 . . . Data Loss (minor) 6 | . . . . . . . . 3 1 1 1 . . Data Loss (major) 5 | . . . . . . . . 3 1 1 . . . Misfires 6 | . . . . . . . . 2 1 2 1 . . Alerts 3 | . . . . . . . . . 2 . . 1 . Misdirections 1 | . . . . . . . . . 1 . . . . Weapon Failures 6 | . . . . . . . . . 3 2 . 1 . Overload Shots . | . . . . . . . . . . . . . . Overflow Damage 161 | . . . . 31 25 10 . 1 . . . 71 23 Projectiles 59 | . . . . 23 25 10 . 1 . . . . . Explosions 102 | . . . . 8 . . . . . . . 71 23 Melee . | . . . . . . . . . . . . . . Knockbacks 46 | . . . 1 7 8 6 . 8 1 3 . 11 1 Impact . | . . . . . . . . . . . . . . Kinetic 45 | . . . 1 7 8 6 . 7 1 3 . 11 1 Secondary 1 | . . . . . . . . 1 . . . . . Self-Inflicted Damage 225 | . . . . 154 . . . . . . . . 71 Shots 8 | . . . . 6 . . . . . . . . 2 Rammed . | . . . . . . . . . . . . . . Targets Rammed . | . . . . . . . . . . . . . . Kicked . | . . . . . . . . . . . . . . Crushed . | . . . . . . . . . . . . . . Highest Temperature 406 | 90 93 38 74 329 338 262 . 406 143 290 . 366 58 Average Temperature 85 | 32 25 15 26 45 98 93 . 134 45 122 . 143 26 Received Heat Transfer 3255 | . 30 108 9 758 135 99 . 992 13 36 . 720 355 Effects 9 | . . . . 1 . 3 . 3 . . . 2 . Shutdowns 1 | . . . . . . . . 1 . . . . . Energy Bleed 2 | . . . . . . . . 1 . . . 1 . Interference 4 | . . . . . . 3 . 1 . . . . . Short Circuit 2 | . . . . 1 . . . . . . . 1 . Siege Activations . | . . . . . . . . . . . . . . Martial Activations . | . . . . . . . . . . . . . . Shielding Activations . | . . . . . . . . . . . . . . Robots Disrupted . | . . . . . . . . . . . . . . Combat Hostiles . | . . . . . . . . . . . . . . Robots Corrupted . | . . . . . . . . . . . . . . Combat Hostiles . | . . . . . . . . . . . . . . Parts Fried 3 | . . 2 . . 1 . . . . . . . . Impact Corruptions . | . . . . . . . . . . . . . . Robots Melted . | . . . . . . . . . . . . . . Combat Hostiles . | . . . . . . . . . . . . . . Parts Melted 2 | 1 1 . . . . . . . . . . . . Heat Transferred 2163 | 703 1110 50 . . . . . . . . . 300 . Parts Sabotaged . | . . . . . . . . . . . . . . Parts Stolen . | . . . . . . . . . . . . . . Parts Stripped . | . . . . . . . . . . . . . . Power Chain Reactions 1 | . . 1 . . . . . . . . . . . Alert | -11 -10 -9 -8 -8 -8 -7 -6 -6 -6 -6 -6 -5 -4 ------- Run | Yrd Mat Mat Mat Gar Mat Fac Fac Ext Cet Arc Hub Fac Fac Maximum Alert Level 3 | . . . . 3 2 1 . . 1 . . 1 . Low Security (%) 71 | 100 100 100 100 23 . 43 100 100 87 100 100 84 100 Level 1 15 | . . . . 33 44 56 . . 12 . . 15 . Level 2 9 | . . . . 31 55 . . . . . . . . Level 3 2 | . . . . 11 . . . . . . . . . Level 4 . | . . . . . . . . . . . . . . Level 5 . | . . . . . . . . . . . . . . High Security . | . . . . . . . . . . . . . . Max Security . | . . . . . . . . . . . . . . Peak Influence 753 | 10 81 32 43 753 624 285 73 106 262 95 . 392 144 Initial 366 | . . . 3 14 366 273 73 . . 95 . . 144 Average 143 | 1 22 10 11 371 451 209 26 20 92 46 . 56 45 Influence Increases 3705 | 25 265 69 100 888 534 123 . 463 472 100 . 458 208 Destroy 0b10 Robot/C 2080 | . 200 40 40 560 300 80 . 260 240 80 . 200 80 Destroy 0b10 Robot/NC 125 | 25 10 . 15 . 20 15 . 30 10 . . . . Destroy Leader 340 | . 34 20 26 20 104 22 . 34 20 . . 40 20 Allied During Kill 335 | . . . . 47 53 . . 37 183 15 . . . Successful Hack 143 | . 20 7 . 30 14 . . 38 16 . . 18 . Disable Machine 270 | . . . 15 45 30 . . 15 . . . 135 30 Anti-Garrison Action 100 | . . . . 100 . . . . . . . . . Destroy Structure 177 | . 1 2 4 56 13 6 . 19 3 5 . 50 18 Lose Combat Pursuer 135 | . . . . 30 . . . 30 . . . 15 60 Influence Decreases 3661 | 25 265 60 86 158 687 573 150 463 234 338 . 162 460 Entered New Map 1101 | . . . 6 9 387 327 77 . . 143 . . 152 Time Decay 1809 | 25 164 60 70 . 230 246 73 316 193 135 . 72 225 Lost Part 434 | . 20 . 10 109 10 . . 111 1 . . 90 83 Lost Ally 236 | . . . . 40 60 . . 36 40 60 . . . Purge Threat 81 | . 81 . . . . . . . . . . . . Squads Dispatched 18 | . 3 1 . . 3 1 . 1 2 . . 5 2 Investigation 7 | . 2 . . . 1 1 . . 2 . . 1 . Extermination 2 | . . . . . . . . . . . . 1 1 Reinforcement 9 | . 1 1 . . 2 . . 1 . . . 3 1 Assault . | . . . . . . . . . . . . . . Garrison . | . . . . . . . . . . . . . . Intercept . | . . . . . . . . . . . . . . Searches Triggered . | . . . . . . . . . . . . . . Construction Impeded 1 | . . . . . . . . 1 . . . . . Haulers Reinforced . | . . . . . . . . . . . . . . Active Scanning Responses . | . . . . . . . . . . . . . . Cargo Convoy Interrupts 1 | . . . . . . . . . . . . 1 . Stealth | -11 -10 -9 -8 -8 -8 -7 -6 -6 -6 -6 -6 -5 -4 --------- Run | Yrd Mat Mat Mat Gar Mat Fac Fac Ext Cet Arc Hub Fac Fac Distress Signals 11 | . 1 2 . . 4 . . 2 2 . . . . Communications Jammed . | . . . . . . . . . . . . . . Distress Signals . | . . . . . . . . . . . . . . Times Spotted 169 | . 18 8 3 31 23 5 . 20 13 14 . 17 17 Peak Tracking Total 11 | . 3 6 1 8 5 3 . 5 5 1 . 6 11 Tactical Retreats 8 | . . . . 2 . . . 2 . . . 1 3 Traps | -11 -10 -9 -8 -8 -8 -7 -6 -6 -6 -6 -6 -5 -4 ------- Run | Yrd Mat Mat Mat Gar Mat Fac Fac Ext Cet Arc Hub Fac Fac Traps Triggered 4 | . . . . 3 . . . . . . . 1 . Indirectly . | . . . . . . . . . . . . . . Trap Hack Attempts . | . . . . . . . . . . . . . . Triggered . | . . . . . . . . . . . . . . Disarmed . | . . . . . . . . . . . . . . Reprogrammed . | . . . . . . . . . . . . . . Reused . | . . . . . . . . . . . . . . Traps Extracted . | . . . . . . . . . . . . . . Installed . | . . . . . . . . . . . . . . Triggered . | . . . . . . . . . . . . . . Machines | -11 -10 -9 -8 -8 -8 -7 -6 -6 -6 -6 -6 -5 -4 ---------- Run | Yrd Mat Mat Mat Gar Mat Fac Fac Ext Cet Arc Hub Fac Fac Machines Disabled 18 | . . . 1 3 2 . . 1 . . . 9 2 Max in Single Turn 8 | . . . 1 1 1 . . . . . . 8 1 Machines Repaired . | . . . . . . . . . . . . . . Machines Dismantled . | . . . . . . . . . . . . . . Machines Sabotaged . | . . . . . . . . . . . . . . Overloaded Fab Kills . | . . . . . . . . . . . . . . Hacking | -11 -10 -9 -8 -8 -8 -7 -6 -6 -6 -6 -6 -5 -4 --------- Run | Yrd Mat Mat Mat Gar Mat Fac Fac Ext Cet Arc Hub Fac Fac Machines Accessed 35 | . 7 2 3 2 3 3 . 5 3 1 1 2 3 Terminals 24 | . 7 2 2 2 2 1 . 4 3 . 1 . . Fabricators 1 | . . . . . . 1 . . . . . . . Repair Stations 1 | . . . . . . . . . . . . 1 . Recycling Units 4 | . . . . . . . . 1 . . . . 3 Scanalyzers 3 | . . . . . 1 1 . . . . . 1 . Garrison Access 1 | . . . 1 . . . . . . . . . . Total Hacks 113 | . 22 7 8 4 7 5 . 9 15 25 1 6 4 Successful 54 | . 6 2 2 2 2 2 . 3 3 25 . 5 2 Failed 58 | . 15 5 6 2 5 3 . 6 12 . 1 1 2 Catastrophic 15 | . 4 2 . . 2 . . 2 4 . . . 1 Database Lockouts 1 | . 1 . . . . . . . . . . . . Manual 41 | . 23 5 6 . 3 1 . . 1 1 . 1 . Terminals 70 | . 22 7 7 4 5 1 . 8 15 . 1 . . Fabricators 3 | . . . . . . 3 . . . . . . . Repair Stations 3 | . . . . . . . . . . . . 3 . Recycling Units 5 | . . . . . . . . 1 . . . . 4 Scanalyzers 6 | . . . . . 2 1 . . . . . 3 . Garrison Access 1 | . . . 1 . . . . . . . . . . Terminal Hacks 43 | . 6 2 1 2 1 . . 3 3 25 . . . Record 29 | . . . . . . . . 1 3 25 . . . Part Schematic 1 | . . 1 . . . . . . . . . . . Robot Analysis 4 | . 3 . . . 1 . . . . . . . . Prototype ID Bank 1 | . . 1 . . . . . . . . . . . Open Door 2 | . . . . . . . . 2 . . . . . Emergency Access Points 1 | . . . . 1 . . . . . . . . . Terminal Index 1 | . 1 . . . . . . . . . . . . Alert Level 1 | . . . 1 . . . . . . . . . . Unreport Threat 1 | . 1 . . . . . . . . . . . . Zone Layout 1 | . 1 . . . . . . . . . . . . Security Stations 1 | . . . . 1 . . . . . . . . . Fabricator Hacks 2 | . . . . . . 2 . . . . . . . Load Schematic 1 | . . . . . . 1 . . . . . . . Build 1 | . . . . . . 1 . . . . . . . Repair Station Hacks 2 | . . . . . . . . . . . . 2 . Scan Component 1 | . . . . . . . . . . . . 1 . Repair 1 | . . . . . . . . . . . . 1 . Recycling Unit Hacks 2 | . . . . . . . . . . . . . 2 Process 1 | . . . . . . . . . . . . . 1 Retrieve Matter 1 | . . . . . . . . . . . . . 1 Scanalyzer 3 | . . . . . 1 . . . . . . 2 . Retrieve Study 3 | . . . . . 1 . . . . . . 2 . Garrison Access Hacks 1 | . . . 1 . . . . . . . . . . Unlock Access 1 | . . . 1 . . . . . . . . . . Unauthorized Hacks 1 | . . . . . . . . . . . . 1 . Terminals . | . . . . . . . . . . . . . . Fabricators . | . . . . . . . . . . . . . . Repair Stations 1 | . . . . . . . . . . . . 1 . Patch 1 | . . . . . . . . . . . . 1 . Recycling Units . | . . . . . . . . . . . . . . Scanalyzers . | . . . . . . . . . . . . . . Garrison Access . | . . . . . . . . . . . . . . Data Cores Recovered 1 | . . . . . . 1 . . . . . . . Used 1 | . . . . . . 1 . . . . . . . Hacking Detections 31 | . 6 2 3 1 3 3 . 5 3 . 1 2 2 Full Trace Events 7 | . 3 . . . 1 1 . . 2 . . . . Feedback Events . | . . . . . . . . . . . . . . Feedback Blocked . | . . . . . . . . . . . . . . Robot Schematics Acquired . | . . . . . . . . . . . . . . Robots Built . | . . . . . . . . . . . . . . Authchips . | . . . . . . . . . . . . . . Time . | . . . . . . . . . . . . . . Total Robot Build Rating . | . . . . . . . . . . . . . . Part Schematics Acquired 1 | . . 1 . . . . . . . . . . . Parts Built 1 | . . . . . . 1 . . . . . . . Authchips . | . . . . . . . . . . . . . . Time 25 | . . . . . . 25 . . . . . . . Total Part Build Rating 1 | . . . . . . 1 . . . . . . . Part Studies Acquired 3 | . . . . . 1 . . . . . . 2 . Parts Repaired 1 | . . . . . . . . . . . . 1 . Time 53 | . . . . . . . . . . . . 53 . Parts Recycled . | . . . . . . . . . . . . . . Recycled Matter . | . . . . . . . . . . . . . . Retrieved Matter . | . . . . . . . . . . . . . . Retrieved Components . | . . . . . . . . . . . . . . Parts Scanalyzed . | . . . . . . . . . . . . . . Part Schematics Acquired . | . . . . . . . . . . . . . . Parts Damaged . | . . . . . . . . . . . . . . Bothacking | -11 -10 -9 -8 -8 -8 -7 -6 -6 -6 -6 -6 -5 -4 ------------ Run | Yrd Mat Mat Mat Gar Mat Fac Fac Ext Cet Arc Hub Fac Fac Used RIF Installer 1 | . . . . 1 . . . . . . . . . Robots Hacked . | . . . . . . . . . . . . . . Non-combat . | . . . . . . . . . . . . . . Combat . | . . . . . . . . . . . . . . Robot Hacks Applied . | . . . . . . . . . . . . . . Relay Couplers Released . | . . . . . . . . . . . . . . Fabnet Peak Effective % . | . . . . . . . . . . . . . . Robots Rewired 13 | . . . . 9 . . . 4 . . . . . Allies Hacked . | . . . . . . . . . . . . . . Hacks Repelled . | . . . . . . . . . . . . . . Allies | -11 -10 -9 -8 -8 -8 -7 -6 -6 -6 -6 -6 -5 -4 -------- Run | Yrd Mat Mat Mat Gar Mat Fac Fac Ext Cet Arc Hub Fac Fac Total Allies 21 | . . . . 9 . . . 7 5 . . . . Largest Group 7 | . . . . 7 4 . . 6 6 4 . . . Highest-Rated Group 639 | . . . . 134 70 . . 170 639 403 . . . Highest-Rated Ally 159 | . . . . 24 24 . . 159 159 136 . . . Total Orders . | . . . . . . . . . . . . . . Ally Attacks 179 | . . . . 29 37 . . 54 45 14 . . . Total Damage 4322 | . . . . 622 651 . . 1007 1573 469 . . . Kills 31 | . . . . 4 8 . . 8 11 . . . . Allies Corrupted . | . . . . . . . . . . . . . . Allies Melted 1 | . . . . . . . . 1 . . . . . Intel | -11 -10 -9 -8 -8 -8 -7 -6 -6 -6 -6 -6 -5 -4 ------- Run | Yrd Mat Mat Mat Gar Mat Fac Fac Ext Cet Arc Hub Fac Fac Active Infowar (turns) 1321 | 57 75 . . . . . . . . . . 821 368 Sensors 1189 | . . . . . . . . . . . . 821 368 Terrain 132 | 57 75 . . . . . . . . . . . . Robot Analysis Total 4 | . 3 . . . 1 . . . . . . . . Derelict Logs Recovered . | . . . . . . . . . . . . . . Drone Launches . | . . . . . . . . . . . . . . Drone Recoveries . | . . . . . . . . . . . . . . Exploration | -11 -10 -9 -8 -8 -8 -7 -6 -6 -6 -6 -6 -5 -4 ------------- Run | Yrd Mat Mat Mat Gar Mat Fac Fac Ext Cet Arc Hub Fac Fac Turns Passed 8291 | 146 565 206 236 1761 488 527 225 1649 480 341 61 993 613 Spaces Moved 3529 | 63 264 154 142 837 210 268 129 441 218 143 32 314 314 Core 48 | 2 . . . . . . . 29 . . . . 17 Treads 1482 | . 95 . 6 370 210 268 129 190 182 15 . . 17 Legs 1012 | . . . . . . . . 222 36 128 32 314 280 Wheels 987 | 61 169 154 136 467 . . . . . . . . . Hover . | . . . . . . . . . . . . . . Flight . | . . . . . . . . . . . . . . Fastest Speed 50 | 50 100 95 100 145 161 165 164 164 160 190 190 110 50 Average Speed 179 | 98 156 95 109 161 172 165 164 297 185 195 190 183 172 Slowest Speed 1350 | 100 240 95 240 241 219 165 164 1350 240 240 190 190 260 Overloaded Moves . | . . . . . . . . . . . . . . Propulsion Burnouts . | . . . . . . . . . . . . . . Robots Hopped . | . . . . . . . . . . . . . . Potential Cave-ins 2 | . . . . . . . . 2 . . . . . Cave-ins Triggered 1 | . . . . . . . . 1 . . . . . Exploration Rate (%) 34 | 5 61 24 15 78 30 9 4 63 66 96 6 10 10 Regions Visited 13 Branch Regions 4 Pre-discovered Areas . | . . . . . . . . . . . . . . Known Exits Taken 2 | . . . 1 . . . . . . . . 1 . Unknown Exits Taken 10 | 1 1 1 . . 1 1 1 1 1 1 1 . . Scrap Searched . | . . . . . . . . . . . . . . Spaces Dug 3 | . . . . . . . . 3 . . . . . Terrain Destroyed 122 | . . 2 4 40 12 5 . 12 1 3 . 35 8 Melee 3 | . . . . . . . . 3 . . . . . Projectile 35 | . . . 4 2 12 5 . 7 1 3 . 1 . AOE 84 | . . 2 . 38 . . . 2 . . . 34 8 Terrain Rammed . | . . . . . . . . . . . . . . Walls Destroyed . | . . . . . . . . . . . . . . Machines Disabled . | . . . . . . . . . . . . . . Actions | -11 -10 -9 -8 -8 -8 -7 -6 -6 -6 -6 -6 -5 -4 --------- Run | Yrd Mat Mat Mat Gar Mat Fac Fac Ext Cet Arc Hub Fac Fac Total 4940 | 105 339 196 212 1156 271 334 143 653 269 174 32 688 368 Wait 584 | 12 19 20 8 64 12 29 9 39 19 7 . 330 16 Move 3516 | 62 263 153 142 835 209 267 128 440 217 142 31 313 314 Hop . | . . . . . . . . . . . . . . Pick Up 105 | 5 9 2 23 15 5 10 2 14 6 1 . 5 8 Fast Attach 43 | 7 1 3 2 4 2 2 . 8 5 2 . 4 3 Attach 51 | . 2 5 3 7 . 2 2 14 3 . . 4 9 Detach 8 | . 2 2 1 . . . . 1 . . . 1 1 Swap 40 | . 2 . 6 8 3 1 1 4 3 2 1 8 1 Drop 67 | . 1 2 18 9 6 11 1 2 4 5 . 5 3 Fire 262 | 19 40 9 9 46 34 12 . 38 12 15 . 18 10 Melee 22 | . . . . . . . . 22 . . . . . Ram . | . . . . . . . . . . . . . . Kick . | . . . . . . . . . . . . . . Crush . | . . . . . . . . . . . . . . Escape Stasis 18 | . . . . 18 . . . . . . . . . Rewire 224 | . . . . 150 . . . 71 . . . . 3 Trap . | . . . . . . . . . . . . . . Miscellaneous . | . . . . . . . . . . . . . . Route ------- -11/Scrapyard -10/Materials -9/Materials -8/Materials -8/Garrison (discovered 3 exits: *Mat x3) -8/Materials -7/Factory -6/Factory -6/Extension (discovered 2 exits: *Fac / *Cet) -6/Cetus -6/Archives (discovered 3 exits: *Fac / *Hub x2) -6/Hub_04(d) -5/Factory -4/Factory History --------- Turn | Location | Event 7 | -11/Scrapyard | Discovered new exit (range 15) 147 | -11/Scrapyard | Entered Materials 308 | -10/Materials | Build established: Mutant 537 | -10/Materials | Central database locked down 632 | -10/Materials | Discovered new exit (range 16) 712 | -10/Materials | Entered another Materials area 712 | -9/Materials | Evolved 2 slots: Propulsion x1, Utility x1 902 | -9/Materials | Discovered new exit (range 12) 918 | -9/Materials | Entered another Materials area 918 | -8/Materials | Evolved 2 slots: Propulsion x1, Utility x1 1154 | -8/Materials | Identified exit to Garrison 1154 | -8/Materials | Entered Garrison 1289 | -8/Garrison | Spotted B-75 Beast 1323 | -8/Garrison | Spotted B-75 Beast 1402 | -8/Garrison | Triggered checkpoint 1459 | -8/Garrison | Destroyed B-75 Beast 1490 | -8/Garrison | Triggered checkpoint 1490 | -8/Garrison | Lost 7 parts (1p4n1u1w) 1620 | -8/Garrison | Discovered new exit (range 10) 1660 | -8/Garrison | Triggered checkpoint 1735 | -8/Garrison | Learned Materials security intel 1976 | -8/Garrison | Triggered checkpoint 2031 | -8/Garrison | Found Powered Armor 2033 | -8/Garrison | Found Powered Armor 2060 | -8/Garrison | Discovered new exit (range 11) 2098 | -8/Garrison | Triggered checkpoint 2519 | -8/Garrison | Installed Relay Interface Framework 2648 | -8/Garrison | Triggered checkpoint 2692 | -8/Garrison | Triggered checkpoint 2742 | -8/Garrison | Build established: Commander-Mutant 2778 | -8/Garrison | Lost 3 allies 2839 | -8/Garrison | Discovered new exit (range 15) 2915 | -8/Garrison | Entered Materials 2915 | -8/Materials | Accompanied by 4 allies 3274 | -8/Materials | Discovered new exit (range 16) 3343 | -8/Materials | Core integrity fell below 50% 3403 | -8/Materials | Entered Factory 3403 | -7/Factory | Evolved 2 slots: Utility x1, Weapon x1 3465 | -7/Factory | Fabricated Grenade Launcher? 3685 | -7/Factory | Build established: Tank 3849 | -7/Factory | Discovered new exit (range 16) 3930 | -7/Factory | Entered another Factory area 3930 | -6/Factory | Evolved 2 slots: Power x1, Propulsion x1 4007 | -6/Factory | Discovered new exit (range 16) 4155 | -6/Factory | Entered Extension 4328 | -6/Extension | Lost 6 parts (1p3n1u1w) 4668 | -6/Extension | Lost 3 parts (1p1n1w) 4871 | -6/Extension | Crushed by falling debris 4951 | -6/Extension | Rescued a captive Derelict 4952 | -6/Extension | Rescued a captive Derelict 4958 | -6/Extension | Spotted B-75 Beast 5019 | -6/Extension | Destroyed B-75 Beast 5023 | -6/Extension | Lost 6 allies 5038 | -6/Extension | Spotted B-75 Beast 5115 | -6/Extension | Destroyed B-75 Beast 5137 | -6/Extension | Lost 11 parts (6n2u3w) 5263 | -6/Extension | System corruption reached 10% 5349 | -6/Extension | Rescued A7 5751 | -6/Extension | Discovered new exit (range 16) 5751 | -6/Extension | Discovered new exit (range 16) 5804 | -6/Extension | Entered Cetus 5804 | -6/Cetus | Accompanied by 1 ally (A7) 5809 | -6/Cetus | Acquired a Cetus Manufacturing Module code from A7 5830 | -6/Cetus | Spotted Cetus Guard 5830 | -6/Cetus | Spotted Cetus Guard 5835 | -6/Cetus | Spotted Cetus Guard 5847 | -6/Cetus | Allies destroyed Cetus Guard 5852 | -6/Cetus | Destroyed Cetus Guard 5856 | -6/Cetus | Allies destroyed Cetus Guard 5856 | -6/Cetus | Spotted Cetus Guard 5865 | -6/Cetus | Allies destroyed Cetus Guard 5969 | -6/Cetus | Started Cetus Manufacturing Module 5994 | -6/Cetus | Manufactured an Enhanced Grunt 6019 | -6/Cetus | Manufactured an Enhanced Grunt 6044 | -6/Cetus | Manufactured an Enhanced Grunt 6069 | -6/Cetus | Manufactured an Enhanced Grunt 6078 | -6/Cetus | Build established: Scavenger-Tank 6094 | -6/Cetus | Manufactured an Enhanced Grunt 6144 | -6/Cetus | Discovered new exit (range 15) 6198 | -6/Cetus | Spotted Cetus Guard 6198 | -6/Cetus | Spotted Cetus Guard 6201 | -6/Cetus | Spotted Cetus Guard 6201 | -6/Cetus | Spotted Cetus Guard 6213 | -6/Cetus | Allies destroyed Cetus Guard 6219 | -6/Cetus | Core integrity fell below 50% 6219 | -6/Cetus | Allies destroyed Cetus Guard 6224 | -6/Cetus | Allies destroyed Cetus Guard 6225 | -6/Cetus | Destroyed Cetus Guard 6284 | -6/Cetus | Entered Archives 6284 | -6/Archives | Accompanied by 4 allies (A7) 6396 | -6/Archives | Unable to access archive contents 6403 | -6/Archives | Discovered new exit (range 13) 6422 | -6/Archives | Discovered new exit (range 15) 6445 | -6/Archives | Discovered new exit (range 13) 6581 | -6/Archives | Unable to access archive contents 6625 | -6/Archives | Entered Hub_04(d) 6625 | -6/Hub_04(d) | Discovered new exit (range 11) 6685 | -6/Hub_04(d) | System corruption reached 30% 6686 | -6/Hub_04(d) | Entered Factory 6686 | -5/Factory | Evolved 2 slots: Propulsion x1, Utility x1 6825 | -5/Factory | Repaired Broken Imp. Grenade Launcher 7504 | -5/Factory | Build established: Scavenger-Skirmisher 7512 | -5/Factory | Cargo convoy interrupted 7555 | -5/Factory | Destroyed 9 combat bots 7599 | -5/Factory | Discovered new exit (range 15) 7678 | -5/Factory | Identified exit to Factory 7679 | -5/Factory | Entered another Factory area 7679 | -4/Factory | Evolved 2 slots: Utility x1, Weapon x1 7705 | -4/Factory | Lost 9 parts (2p3n3u1w) 7927 | -4/Factory | Build established: Scavenger-Mutant 8250 | -4/Factory | Core integrity fell below 50% 8255 | -4/Factory | Released all parts (7) 8261 | -4/Factory | Core integrity fell below 20% 8276 | -4/Factory | Lost 10 parts (1p2n1u6w) 8292 | -4/Factory | Destroyed by exploding Power Conduit Last Messages --------------- 08259_ Dropped Hpw. Tractor Beam. 08260_ U-05 Engineer lays Concrete. 08261_ Acquired Adv. Medium Treads. 08261_ U-05 Engineer lays Concrete. 08263_ U-05 Engineer builds a Wall. 08264_ U-05 Engineer lays Concrete. 08266_ Penetrated by Slug. 08266_ Slug penetrates Wall. 08266_ Penetrated by Slug. 08266_ Slug penetrates Wall. 08269_ Penetrated by Slug. 08272_ ALERT: Potential suspicious activity detected, Programmers report to Factory Zone 4H. 08287_ Penetrated by Slug. 08287_ Slug penetrates Wall. 08292_ Power Conduit explodes. 08292_ H-77 Assassin destroyed. 08292_ Power Conduit explodes. 08292_ Adv. Medium Treads destroyed. Map ----- +----------------------------------------------------+ | #?????????????????????????? | | #?????????????????????????? | | """ """" """" #?????????????????????????? | | """ """" """" ####??????????????????????? | | "" """" """" ??????????????????????? | | ??????????????????????? | | # ! """ """ """" ???????????????????????? | | #//% "" """ """" ?????????????????????????? | | !!!![ "% """ """" #???????????????????????????? | | *! [ #???????????????????????????? | | ##[* % #???????????????????????????? | | ?### % #???????????????????????????? | | ??## = ""#" #???????????????????????????? | | ??# ! ###" ######???????????????????????????? | | ??# #?## #????????????????????????????????? | | ??# #??# #????????????????????????????????? | | ??# ####;##########???????????????????????? | | ??# ## Y !! ##??????????????????????? | | ??# ## !! ;#??????????????????????? | | ??# [** ## ! ;#??????????????????????? | | ??# [*! ##! ;#??????????????????????? | | ??# ** ## g #??????????????????????? | | ??########### H h #??????????????????????? | | ????????????# = #??????????????????????? | | ????????????#! !%! ####???????????????????? | | ????????????# [ @ #???????????????????? | | ????????????# ## #???????????????????? | | ????????????#! #??????????????????????? | | ????????????# ??????????????????????? | | ????????????##########+##; ??????????????????????? | | ?????????????????????????? ??????????????????????? | | ?????????????????????????? ??????????????????????? | | ?????????????????????????? !?????????????????????? | | ?????????????????????????? ?????????????????????? | | ?????????????????????????? ?????????????????????? | | ?????????????????????????? ?????????????????????? | | ?????????????????????????? ????????????????????? | | ???????????????????????????##????????????????????? | | ?????????????????????????????????????????????????? | | ?????????????????????????????????????????????????? | | ?????????????????????????????????????????????????? | | ?????????????????????????????????????????????????? | | ?????????????????????????????????????????????????? | | ?????????????????????????????????????????????????? | | ?????????????????????????????????????????????????? | | ?????????????????????????????????????????????????? | | ?????????????????????????????????????????????????? | | ?????????????????????????????????????????????????? | | ?????????????????????????????????????????????????? | | ?????????????????????????????????????????????????? | +----------------------------------------------------+ Best States ------------- Heat Dissipation 59 Energy Generation 39 Energy Capacity 565 Matter Stores 300 Matter Capacity 300 Sight Range 16 Robot Scan Range 15 Terrain Scan Range 16 Terrain Scan Density 10 Armor Coverage 700 Resistance: TH 30 Utility Shielding 66 Weapon Shielding 66 Evasion (%) 55 Targeting Accuracy 8 Recoil Reduction 5 Offensive Hacking 12 Defensive Hacking 12 Item Schematics ----------------- Grenade Launcher | -9/Materials | Hacked Robot Schematics ------------------ None Fabricated ------------ Grenade Launcher | x1 | -7/Factory Repaired ---------- Imp. Grenade Launcher | 86% | -5/Factory | Broken Studied --------- Arm. Treads | -8/Materials | Hacked Flak Cannon | -5/Factory | Hacked Flak Gun | -5/Factory | Hacked Alien Tech Used ----------------- None Achievements -------------- Project G-00 Challenges ------------ None Game ------ Seed EfficiencyThiefFalx Manual? 0 Play Time 01:20:41 Cumulative 133.5 hours Start 2026.01.18 @ 19:07:19 End 2026.01.18 @ 22:03:32 Sessions 3 Manual Loads 0 Difficulty Rogue Special Mode None Game No. 192 Rogue 192 Adventurer 0 Explorer 0 Win Type - Total 1 Types 1/0/0/0/0/0/0/0/0/0 Lore% 64 Gallery% 58 Achievement% 42 Wizard Run 0 Options --------- Layout 2 ASCII 0 Keyboard 0 Movement Mouse Keybinds 0 Fullscreen 1 Font 16/SmallcapsGlow Map View 50x49 Zoom Use 0% Tactical HUD 1 Map Filters NONE Filters NONE Steam SD RUN: 206d1f0a-c2d4-406b-b3b9-107ca796d644